bitfinex/quotes_SOLUSD_20251002
["timestamp","ask_amount","ask_price","bid_price","bid_amount"]
[1759439301311,0.72,233.43,233.42,30.1]
[1759439302123,0.72,233.45,233.42,30.1]
[1759439302328,0.72,233.44,233.42,30.1]
[1759439302526,0.72,233.46,233.42,30.1]
[1759439302716,0.72,233.45,233.42,30.1]
[1759439303220,30.1,233.58,233.45,20.8]
[1759439303526,0.72,233.51,233.46,30.1]
[1759439304013,0.72,233.51,233.46,30.8]
[1759439304830,4.28265524,233.5,233.46,30.8]
[1759439305005,4.28236682,233.52,233.47,0.68]
[1759439305201,4.97236682,233.52,233.47,0.68]
[1759439306734,0.69,233.51,233.47,0.68]
[1759439306909,0.69,233.51,233.46,30.1]
[1759439307223,4.28236682,233.52,233.47,0.68]
[1759439307431,0.69,233.51,233.48,30.14]
[1759439307606,4.28236682,233.52,233.48,30.14]
[1759439307931,0.69,233.51,233.48,30.14]
[1759439308109,0.69,233.5,233.43,0.68]
[1759439308529,0.69,233.5,233.47,20.8]
[1759439308832,0.69,233.49,233.47,20.8]
[1759439310120,4.97247184,233.51,233.47,20.8]
[1759439310423,0.69,233.5,233.47,20.8]
[1759439311230,0.69,233.49,233.44,0.68]
[1759439311530,0.69,233.48,233.47,20.8]
[1759439311728,0.69,233.48,233.45,30.12]
[1759439311930,0.66,233.47,233.45,30.12]
[1759439312135,4.28283866,233.49,233.45,30.12]
[1759439312333,4.94283866,233.49,233.45,30.12]
[1759439312514,0.66,233.48,233.45,30.12]
[1759439312711,4.28283866,233.49,233.37,17.1469054]
[1759439312712,0.66,233.47,233.37,17.1469054]
[1759439312924,0.66,233.47,233.41,20.8]
[1759439313111,0.66,233.47,233.45,20.8]
[1759439313312,0.66,233.46,233.38,0.69]
[1759439313512,0.66,233.46,233.39,30.12]
[1759439313809,0.66,233.45,233.4,30.12]
[1759439314020,4.28393951,233.43,233.42,20.8]
[1759439314229,4.94393951,233.43,233.41,30.12]
[1759439315438,0.66,233.42,233.35,0.69]
[1759439315732,0.66,233.42,233.39,20.8]
[1759439315909,4.28393951,233.43,233.4,30.12]
[1759439316430,4.94393951,233.43,233.4,30.12]
[1759439316825,4.28393951,233.43,233.4,30.12]
[1759439317025,4.28393951,233.43,233.4,30.81]
[1759439317213,4.28393951,233.43,233.4,30.12]
[1759439317413,4.94393951,233.43,233.4,30.12]
[1759439319335,4.94393951,233.43,233.38,0.69]
[1759439319536,4.94393951,233.43,233.39,30.1]
[1759439319841,4.28265524,233.5,233.43,20.8]
[1759439320045,4.28265524,233.5,233.44,30.79]
[1759439320243,0.66,233.49,233.41,20.8]
[1759439320425,0.66,233.48,233.41,0.69]
[1759439320748,0.66,233.48,233.41,20.8]
[1759439320914,0.66,233.47,233.42,30.18]
[1759439321335,0.66,233.46,233.42,30.18]
[1759439322238,14.98929335,233.5,233.42,30.18]
[1759439322239,4.94371235,233.45,233.42,30.18]
[1759439322416,4.28371235,233.45,233.42,30.18]
[1759439322818,0.66,233.44,233.37,20.8]
[1759439323040,0.66,233.44,233.29,21.43227104]
[1759439323041,0.66,233.44,233.41,20.8]
[1759439323233,0.66,233.44,233.41,50.98]
[1759439324143,14.99264359,233.45,233.41,50.98]
[1759439324444,4.28393951,233.43,233.41,50.98]
[1759439324923,4.28393951,233.43,233.41,30.18]
[1759439324924,0.66,233.42,233.41,30.18]
[1759439325321,14.99378828,233.43,233.41,30.18]
[1759439325638,15.65378828,233.43,233.41,30.18]
[1759439327340,15.65378828,233.43,233.37,0.69]
[1759439327545,15.65378828,233.43,233.38,30.16]
[1759439328147,0.66,233.42,233.38,30.16]
[1759439328652,4.94430658,233.41,233.36,20.8]
[1759439328828,4.28409653,233.43,233.37,30.14]
[1759439329035,4.28409653,233.43,233.38,0.69]
[1759439329239,4.28409653,233.43,233.39,0.69]
[1759439330247,4.28375599,233.44,233.39,0.69]
[1759439330445,4.28375599,233.44,233.37,50.94]
[1759439330641,4.28375599,233.44,233.38,0.69]
[1759439331555,0.66,233.44,233.38,0.69]
[1759439334159,4.28393951,233.43,233.38,0.69]
[1759439334368,4.9430221,233.48,233.4,20.8]
[1759439334539,4.9430221,233.48,233.44,20.8]
[1759439335145,4.9430221,233.48,233.45,30.14]
[1759439337538,4.2830221,233.48,233.45,30.14]
[1759439338462,4.28283866,233.49,233.45,30.14]
[1759439339141,4.94283866,233.49,233.45,30.14]
[1759439340176,4.28228845,233.52,233.46,0.69]
[1759439340353,0.66,233.51,233.47,30.12]
[1759439340550,0.66,233.5,233.47,30.12]
[1759439340863,0.66,233.49,233.47,30.12]
[1759439341049,4.28228845,233.52,233.47,30.12]
[1759439341250,0.66,233.48,233.47,30.12]
[1759439341445,0.67,233.5,233.47,30.12]
[1759439341648,4.95280321,233.5,233.47,30.12]
[1759439342259,0.67,233.49,233.47,30.12]
[1759439342467,0.67,233.48,233.47,30.12]
[1759439343560,4.9530221,233.48,233.44,30.14]
[1759439344459,4.2830221,233.48,233.44,30.14]
[1759439344761,0.67,233.47,233.44,30.14]
[1759439344969,4.28287378,233.49,233.44,30.81]
[1759439345363,4.95287378,233.49,233.44,30.81]
[1759439347046,4.95287378,233.49,233.44,30.14]
[1759439347247,4.95287378,233.49,233.44,30.81]
[1759439347747,0.67,233.48,233.44,30.14]
[1759439348164,4.28287378,233.49,233.44,30.81]
[1759439348349,4.28287378,233.49,233.44,30.14]
[1759439348670,0.67,233.48,233.44,30.14]
[1759439349167,4.28320555,233.47,233.44,30.81]
[1759439351661,4.2830221,233.48,233.44,30.81]
[1759439353859,4.2830221,233.48,233.44,30.14]
[1759439354066,4.2830221,233.48,233.44,30.84]
[1759439355274,0.65,233.5,233.44,30.84]
[1759439355646,0.65,233.49,233.44,30.84]
[1759439355861,0.65,233.48,233.44,30.14]
[1759439356280,0.65,233.48,233.43,20.8]
[1759439356472,0.65,233.48,233.44,30.08]
[1759439356777,4.28320555,233.47,233.44,30.08]
[1759439356964,4.28320555,233.47,233.44,30.78]
[1759439357659,4.28320555,233.47,233.44,0.7]
[1759439357868,4.28320555,233.47,233.45,30.06]
[1759439358881,4.28320555,233.47,233.43,21.5]
[1759439359097,4.28320555,233.47,233.45,30.06]
[1759439359496,4.28320555,233.47,233.44,0.7]
[1759439359791,14.9871497,233.54,233.43,20.8]
[1759439359974,14.9871497,233.54,233.36,21.42569176]
[1759439359975,0.65,233.53,233.47,20.8]
[1759439360155,0.65,233.52,233.47,50.9]
[1759439360355,14.9871497,233.54,233.47,50.9]
[1759439360356,0.65,233.51,233.47,50.9]
[1759439360881,4.28265524,233.5,233.47,50.9]
[1759439361365,0.65,233.51,233.47,50.9]
[1759439361574,4.28245375,233.52,233.48,0.66]
[1759439361962,5.00245375,233.52,233.48,0.66]
[1759439362677,4.28245375,233.52,233.47,50.9]
[1759439362862,4.28210508,233.53,233.48,0.66]
[1759439363067,4.28210508,233.53,233.47,50.9]
[1759439363068,0.72,233.52,233.47,50.9]
[1759439363275,0.72,233.52,233.47,51.56]
[1759439364060,0.72,233.52,233.48,0.66]
[1759439364261,4.28210508,233.53,233.48,0.66]
[1759439364464,0.72,233.52,233.47,50.9]
[1759439364767,0.72,233.51,233.47,50.9]
[1759439365079,14.98736778,233.53,233.48,0.66]
[1759439365080,15.70736778,233.53,233.48,0.66]
[1759439365375,14.98736778,233.53,233.48,0.66]
[1759439365579,4.28192501,233.54,233.49,0.66]
[1759439365769,5.00192501,233.54,233.49,0.66]
[1759439367362,4.28192501,233.54,233.49,0.66]
[1759439367571,0.72,233.53,233.49,0.66]
[1759439367762,0.72,233.52,233.47,51.56]
[1759439368653,5.00229329,233.52,233.47,51.56]
[1759439368858,4.28229329,233.52,233.47,51.56]
[1759439369079,5.00229329,233.52,233.47,51.56]
[1759439369861,4.28229329,233.52,233.47,51.56]
[1759439370065,0.72,233.51,233.47,51.56]
[1759439370672,4.28229329,233.52,233.47,51.56]
[1759439370873,5.00229329,233.52,233.47,51.56]
[1759439371074,0.72,233.51,233.47,51.56]
[1759439372274,0.7,233.5,233.47,50.9]
[1759439372475,4.28248616,233.51,233.47,51.62]
[1759439372669,4.98248616,233.51,233.47,51.62]
[1759439373484,4.98248616,233.51,233.45,30.04]
[1759439373678,4.98248616,233.51,233.48,20.8]
[1759439374392,4.98248616,233.51,233.49,20.8]
[1759439374593,4.28226891,233.53,233.49,20.8]
[1759439374763,4.28192914,233.54,233.5,0.71]
[1759439375087,0.66,233.55,233.5,0.71]
[1759439375306,0.66,233.55,233.48,25.08300171]
[1759439375307,0.66,233.57,233.51,0.71]
[1759439375693,0.66,233.57,233.51,21.51]
[1759439375893,0.66,233.57,233.52,0.71]
[1759439376381,4.28155506,233.56,233.52,0.71]
[1759439377586,4.28155506,233.56,233.53,0.5]
[1759439377983,0.66,233.56,233.53,0.5]
[1759439378297,0.66,233.58,233.53,0.5]
[1759439378497,0.66,233.57,233.53,0.5]
[1759439378703,0.66,233.56,233.53,0.5]
[1759439379494,0.66,233.59,233.53,1.21]
[1759439380796,4.28118845,233.58,233.53,1.21]
[1759439381099,4.94118845,233.58,233.53,1.21]
[1759439381695,0.66,233.57,233.53,1.21]
[1759439381885,4.94118845,233.58,233.53,1.21]
[1759439382287,0.66,233.57,233.53,1.21]
[1759439382483,4.28118845,233.58,233.54,0.71]
[1759439382689,0.66,233.57,233.53,0.5]
[1759439382902,4.28155506,233.56,233.53,1.21]
[1759439383199,0.66,233.55,233.53,0.5]
[1759439383774,0.66,233.54,233.53,0.5]
[1759439384977,4.94192172,233.54,233.53,0.5]
[1759439385202,4.94192172,233.54,233.51,20.8]
[1759439385503,10.70388765,233.56,233.51,20.8]
[1759439385504,4.28167191,233.56,233.51,20.8]
[1759439385889,4.28167191,233.56,233.52,0.71]
[1759439386195,4.94124667,233.58,233.52,0.71]
[1759439386704,4.94124667,233.58,233.51,20.8]
[1759439387000,14.98544271,233.56,233.51,20.8]
[1759439387211,0.66,233.55,233.51,20.8]
[1759439387501,14.98544271,233.56,233.51,20.8]
[1759439387502,0.66,233.54,233.51,20.8]
[1759439387806,0.66,233.53,233.51,20.8]
[1759439389905,4.94215566,233.53,233.51,20.8]
[1759439391302,4.94215566,233.53,233.48,50.84]
[1759439391500,4.94215566,233.53,233.48,51.55]
[1759439392786,4.94215566,233.53,233.5,0.5]
[1759439394205,15.64741836,233.53,233.43,0.71]
[1759439394505,10.87647521,233.52,233.43,0.71]
[1759439394709,10.87647521,233.52,233.43,21.51]
[1759439394890,0.66,233.51,233.43,21.51]
[1759439395089,0.66,233.5,233.43,21.51]
[1759439395297,4.94283866,233.49,233.43,0.71]
[1759439395483,4.94283866,233.49,233.44,20.8]
[1759439395689,0.66,233.48,233.43,0.71]
[1759439395904,0.66,233.47,233.44,20.8]
[1759439396096,4.28283866,233.49,233.44,20.8]
[1759439396290,0.66,233.48,233.44,20.8]
[1759439397095,0.66,233.48,233.43,25.0839377]
[1759439397294,4.28303341,233.48,233.44,0.71]
[1759439397506,4.28303341,233.48,233.44,21.51]
[1759439397706,4.94303341,233.48,233.44,0.71]
[1759439397913,4.94303341,233.48,233.44,20.8]
[1759439398908,4.28303341,233.48,233.44,20.8]
[1759439399094,4.94303341,233.48,233.44,20.8]
[1759439399409,0.66,233.48,233.44,21.51]
[1759439399607,0.66,233.48,233.44,20.8]
[1759439399818,4.94303695,233.48,233.44,21.51]
[1759439400107,4.28303695,233.48,233.44,20.8]
[1759439400415,4.94303695,233.48,233.44,20.8]
[1759439400706,4.94303695,233.48,233.44,0.71]
[1759439401413,0.69,233.47,233.43,4.28391139]
[1759439401591,0.69,233.46,233.42,35.96059619]
[1759439401796,0.69,233.45,233.42,20.8]
[1759439402106,0.69,233.44,233.42,20.8]
[1759439402728,16.73679481,233.51,233.4,20.8]
[1759439402903,0.69,233.43,233.4,20.8]
[1759439404014,34.27624247,233.53,233.38,0.65]
[1759439404015,0.69,233.42,233.39,20.8]
[1759439404532,40.91647521,233.48,233.32,10.71457284]
[1759439404533,0.69,233.41,233.32,0.65]
[1759439404819,0.69,233.4,233.32,12.8686327]
[1759439404990,0.69,233.39,233.32,12.8686327]
[1759439405194,0.69,233.38,233.32,12.8686327]
[1759439405389,0.69,233.38,233.32,33.6686327]
[1759439405806,4.97492567,233.38,233.32,20.8]
[1759439405992,0.69,233.38,233.32,25.08595853]
[1759439406198,0.69,233.38,233.32,20.8]
[1759439406720,0.69,233.41,233.33,0.65]
[1759439407021,4.97286173,233.49,233.37,20.8]
[1759439407225,4.97286173,233.49,233.38,0.65]
[1759439407424,15.67995839,233.49,233.38,0.65]
[1759439407792,15.67995839,233.49,233.42,20.8]
[1759439408112,0.69,233.48,233.42,20.8]
[1759439408410,14.98995839,233.49,233.39,4.93462022]
[1759439408411,0.69,233.47,233.39,4.93462022]
[1759439408602,0.69,233.47,233.4,12.86421817]
[1759439408802,0.69,233.46,233.39,4.93462022]
[1759439409220,0.69,233.46,233.41,20.8]
[1759439409619,0.69,233.46,233.41,0.65]
[1759439409819,0.69,233.48,233.42,0.65]
[1759439410121,4.97316182,233.48,233.42,0.65]
[1759439410316,4.28316182,233.48,233.42,0.65]
[1759439411722,0.69,233.47,233.4,11.35709666]
[1759439412115,0.69,233.47,233.42,20.8]
[1759439412844,0.69,233.46,233.42,20.8]
[1759439413121,4.97297724,233.49,233.43,0.65]
[1759439413621,4.97297724,233.49,233.42,20.8]
[1759439414120,0.69,233.48,233.42,20.8]
[1759439414703,4.97319499,233.48,233.42,20.8]
[1759439416010,0.69,233.47,233.42,20.8]
[1759439416409,14.99075024,233.48,233.42,20.8]
[1759439416410,0.69,233.46,233.42,20.8]
[1759439416620,0.69,233.45,233.42,20.8]
[1759439417837,14.99075024,233.48,233.42,20.8]
[1759439417838,4.28393951,233.43,233.42,20.8]
[1759439419028,0.69,233.45,233.42,20.8]
[1759439419029,4.28375599,233.44,233.42,20.8]
[1759439419208,4.97375599,233.44,233.42,20.8]
[1759439419823,4.97375599,233.44,233.41,20.8]
[1759439420122,4.97338901,233.46,233.41,20.8]
[1759439420921,0.69,233.45,233.41,20.8]
[1759439421234,0.69,233.45,233.39,0.65]
[1759439421402,0.69,233.45,233.38,20.8]
[1759439421610,0.69,233.44,233.38,20.8]
[1759439421825,0.69,233.43,233.38,20.8]
[1759439422209,0.69,233.42,233.38,20.8]
[1759439422717,0.69,233.41,233.38,20.8]
[1759439422919,0.69,233.4,233.33,0.65]
[1759439423228,21.41770996,233.46,233.33,0.65]
[1759439423229,0.69,233.51,233.33,36.45004936]
[1759439423404,21.40071272,233.64,233.37,20.8]
[1759439423405,0.69,233.5,233.37,20.8]
[1759439423606,12.86311501,233.57,233.41,20.8]
[1759439423805,0.66,233.59,233.42,0.65]
[1759439423806,11.56647521,233.56,233.42,0.65]
[1759439424001,11.56647521,233.56,233.43,30.24]
[1759439424226,10.87647521,233.54,233.44,5.00375599]
[1759439424433,15.69608434,233.55,233.44,5.00375599]
[1759439424434,15.69608434,233.55,233.47,20.8]
[1759439424605,15.69608434,233.55,233.48,0.72]
[1759439427431,4.28173838,233.55,233.51,20.8]
[1759439427614,4.28173838,233.55,233.52,20.8]
[1759439428436,4.28155506,233.56,233.52,20.8]
[1759439429134,4.99155506,233.56,233.52,20.8]
[1759439429514,0.71,233.55,233.52,20.8]
[1759439429710,0.71,233.54,233.52,20.8]
[1759439430638,15.69544271,233.56,233.52,20.8]
[1759439430815,14.98544271,233.56,233.52,20.8]
[1759439431017,0.71,233.55,233.52,20.8]
[1759439431215,14.98544271,233.56,233.52,20.8]
[1759439431216,0.71,233.54,233.52,20.8]
[1759439431410,0.71,233.54,233.51,20.8]
[1759439431726,4.28210508,233.53,233.51,20.8]
[1759439432317,4.28192482,233.54,233.51,20.8]
[1759439433207,4.28192482,233.54,233.52,20.8]
[1759439433421,4.28173838,233.55,233.52,20.8]
[1759439433624,15.66608434,233.55,233.52,20.8]
[1759439433824,0.68,233.54,233.51,20.8]
[1759439435421,4.96203885,233.54,233.51,20.8]
[1759439436223,4.28203885,233.54,233.51,20.8]
[1759439436611,4.28173838,233.55,233.51,20.8]
[1759439436829,0.68,233.54,233.52,20.8]
[1759439437739,4.28210508,233.53,233.51,20.8]
[1759439438036,4.28210508,233.53,233.52,20.8]
[1759439439835,4.28192172,233.54,233.52,20.8]
[1759439440618,4.96192172,233.54,233.52,20.8]
[1759439441141,0.68,233.56,233.52,20.8]
[1759439441322,0.68,233.55,233.52,20.8]
[1759439442044,14.9828767,233.6,233.52,20.8]
[1759439442248,4.96209897,233.54,233.52,20.8]
[1759439442461,0.68,233.53,233.52,20.8]
[1759439443326,4.96210508,233.53,233.52,20.8]
[1759439444342,4.28210508,233.53,233.52,20.8]
[1759439444715,4.96210508,233.53,233.52,20.8]
[1759439445640,4.28210508,233.53,233.52,20.8]
[1759439446637,4.96189847,233.55,233.52,20.8]
[1759439446841,0.68,233.54,233.52,20.8]
[1759439447632,4.96210244,233.54,233.52,20.8]
[1759439454629,4.28210244,233.54,233.52,20.8]
[1759439454829,4.96210244,233.54,233.52,20.8]
[1759439455546,0.68,233.53,233.47,12.86035794]
[1759439455746,11.55647521,233.52,233.47,12.86035794]
[1759439455931,10.87647521,233.5,233.42,0.67]
[1759439456250,0.68,233.49,233.43,20.8]
[1759439456445,14.98800958,233.52,233.42,0.67]
[1759439456633,0.68,233.48,233.42,0.67]
[1759439456951,0.68,233.48,233.43,20.8]
[1759439457126,0.68,233.47,233.43,20.8]
[1759439457831,0.68,233.46,233.43,20.8]
[1759439458350,4.28357249,233.45,233.43,20.8]
[1759439459844,0.68,233.44,233.4,21.0]
[1759439460150,0.68,233.44,233.39,0.67]
[1759439460151,0.68,233.43,233.41,20.8]
[1759439460326,0.68,233.43,233.39,0.67]
[1759439460327,0.68,233.42,233.17,42.77344456]
[1759439460528,0.68,233.43,233.37,0.67]
[1759439460833,0.68,233.43,233.37,21.47]
[1759439461238,4.28412304,233.42,233.37,21.47]
[1759439461449,4.96412304,233.42,233.37,21.47]
[1759439461625,4.28412304,233.42,233.37,21.47]
[1759439461830,0.7,233.41,233.37,20.8]
[1759439462667,4.28449014,233.4,233.37,20.8]
[1759439463231,4.28449014,233.4,233.37,21.51]
[1759439463426,4.28428108,233.42,233.37,21.51]
[1759439463747,4.28428108,233.42,233.35,0.71]
[1759439463748,11.57647521,233.41,233.35,0.71]
[1759439463933,11.57647521,233.41,233.37,20.8]
[1759439464129,10.87647521,233.41,233.37,20.8]
[1759439464344,0.7,233.4,233.37,20.8]
[1759439464537,10.87647521,233.41,233.37,21.51]
[1759439464743,4.28449014,233.4,233.37,20.8]
[1759439465440,4.98449014,233.4,233.37,20.8]
[1759439467839,15.6957155,233.4,233.37,20.8]
[1759439468052,0.7,233.39,233.37,20.8]
[1759439468250,10.87647521,233.38,233.34,30.14]
[1759439468445,10.87647521,233.38,233.37,20.8]
[1759439468757,11.57647521,233.38,233.31,30.81]
[1759439468947,10.87647521,233.39,233.34,20.8]
[1759439469149,10.87647521,233.39,233.34,21.51]
[1759439469350,11.57647521,233.39,233.34,21.51]
[1759439469565,4.28469679,233.39,233.34,20.8]
[1759439469862,4.28469679,233.39,233.35,0.71]
[1759439470061,4.28469679,233.39,233.36,0.71]
[1759439470855,4.28469679,233.39,233.34,20.8]
[1759439470856,4.28469679,233.39,233.34,21.51]
[1759439471161,4.28469679,233.39,233.35,0.71]
[1759439471347,0.7,233.38,233.34,20.8]
[1759439471661,0.7,233.37,233.34,20.8]
[1759439471842,0.7,233.36,233.34,20.8]
[1759439472758,10.87647521,233.37,233.34,20.8]
[1759439472953,11.57647521,233.37,233.34,20.8]
[1759439473154,4.28522454,233.36,233.34,20.8]
[1759439474849,4.28522454,233.36,233.34,21.51]
[1759439475634,10.87647521,233.4,233.35,0.71]
[1759439476059,10.87647521,233.4,233.36,0.71]
[1759439476451,11.57647521,233.4,233.34,21.51]
[1759439477874,4.28467372,233.39,233.34,21.51]
[1759439478167,4.98467372,233.39,233.34,21.51]
[1759439483067,4.98467372,233.39,233.35,0.71]
[1759439483271,4.98467372,233.39,233.34,20.8]
[1759439483467,4.98467372,233.39,233.34,21.51]
[1759439484068,4.98467372,233.39,233.35,0.7]
[1759439484466,4.98467372,233.39,233.34,20.8]
[1759439484674,4.28504092,233.37,233.34,20.8]
[1759439484859,4.28504092,233.37,233.34,21.5]
[1759439486973,10.87647521,233.38,233.35,0.7]
[1759439487174,10.87647521,233.38,233.34,20.8]
[1759439487477,10.87647521,233.38,233.34,21.5]
[1759439487972,0.69,233.46,233.35,30.78]
[1759439488174,14.99121942,233.47,233.39,20.8]
[1759439488175,15.68121942,233.47,233.39,20.8]
[1759439488382,15.68121942,233.47,233.4,0.7]
[1759439488560,10.87647521,233.46,233.4,0.7]
[1759439488959,10.87647521,233.46,233.4,4.98437391]
[1759439489172,10.87647521,233.46,233.41,0.7]
[1759439489483,15.15986523,233.46,233.41,0.7]
[1759439490065,4.28282532,233.5,233.41,0.7]
[1759439490266,10.87647521,233.5,233.41,0.7]
[1759439490467,0.69,233.5,233.41,13.56146063]
[1759439490664,0.69,233.49,233.44,20.8]
[1759439490976,15.84931387,233.49,233.48,20.8]
[1759439493766,26.55641053,233.49,233.45,30.08]
[1759439493981,0.7,233.48,233.45,20.8]
[1759439494164,0.7,233.47,233.45,20.8]
[1759439495277,4.28338901,233.46,233.45,20.8]
[1759439496058,4.98338901,233.46,233.45,20.8]
[1759439496475,4.28338901,233.46,233.45,20.8]
[1759439497370,4.28320555,233.47,233.45,20.8]
[1759439497884,4.98320555,233.47,233.45,20.8]
[1759439498686,4.28320555,233.47,233.45,20.8]
[1759439499182,4.98320555,233.47,233.45,20.8]
[1759439499571,4.28320555,233.47,233.45,20.8]
[1759439500182,4.2830221,233.48,233.45,20.8]
[1759439500389,15.85949731,233.48,233.45,20.8]
[1759439500686,15.15949731,233.48,233.46,0.72]
[1759439500889,15.85949731,233.48,233.45,20.8]
[1759439501767,0.7,233.47,233.45,20.8]
[1759439502194,10.87647521,233.46,233.45,20.8]
[1759439502366,15.15986422,233.46,233.45,20.8]
[1759439503391,15.85986422,233.46,233.45,20.8]
[1759439505089,15.85986422,233.46,233.42,30.08]
[1759439505767,4.28375599,233.44,233.42,30.08]
[1759439506877,4.28358396,233.45,233.42,30.08]
[1759439507279,4.98358396,233.45,233.42,30.08]
[1759439507684,4.28358396,233.45,233.42,30.08]
[1759439507885,4.28338901,233.46,233.42,30.08]
[1759439508086,4.98338901,233.46,233.42,30.08]
[1759439509372,4.98338901,233.46,233.42,30.8]
[1759439509990,11.57647521,233.45,233.39,20.8]
[1759439510189,10.87647521,233.43,233.39,20.8]
[1759439510368,0.7,233.42,233.39,20.8]
[1759439510889,10.87647521,233.43,233.39,20.8]
[1759439511095,11.57647521,233.43,233.39,20.8]
[1759439511392,11.57647521,233.43,233.39,21.52]
[1759439511791,4.28412304,233.42,233.39,21.52]
[1759439513575,4.28412304,233.42,233.35,6.17180146]
[1759439513576,11.57647521,233.41,233.35,6.17180146]
[1759439513892,10.87647521,233.39,233.34,30.78]
[1759439514069,11.57647521,233.39,233.34,30.06]
[1759439514268,11.57647521,233.39,233.34,30.78]
[1759439514472,11.57647521,233.39,233.34,51.58]
[1759439515093,4.28485731,233.38,233.35,0.72]
[1759439516381,11.57647521,233.39,233.35,0.72]
[1759439517597,15.86124287,233.39,233.34,50.86]
[1759439517803,15.86124287,233.39,233.35,0.72]
[1759439518685,15.16124287,233.39,233.34,50.86]
[1759439518878,10.87647521,233.37,233.34,50.86]
[1759439519079,11.57647521,233.37,233.34,50.86]
[1759439519501,4.28522454,233.36,233.34,20.8]
[1759439519681,11.57647521,233.35,233.34,20.8]
[1759439520174,10.87647521,233.35,233.34,20.8]
[1759439520975,21.41908006,233.44,233.31,30.78]
[1759439520976,4.28357249,233.45,233.37,20.8]
[1759439521181,4.28357249,233.45,233.39,20.8]
[1759439521182,10.87647521,233.44,233.39,20.8]
[1759439521487,10.87647521,233.44,233.4,30.78]
[1759439521675,4.28339847,233.46,233.4,30.78]
[1759439521676,10.87647521,233.45,233.41,0.66]
[1759439521881,10.87647521,233.45,233.43,20.8]
[1759439522800,10.87647521,233.46,233.43,20.8]
[1759439522980,10.87647521,233.46,233.43,21.46]
[1759439523297,10.87647521,233.46,233.43,20.8]
[1759439523478,11.57647521,233.46,233.43,20.8]
[1759439523895,0.7,233.45,233.43,20.8]
[1759439524401,0.7,233.44,233.43,20.8]
[1759439524797,4.98375599,233.44,233.43,20.8]
[1759439527008,10.87647521,233.49,233.43,21.46]
[1759439527206,11.57647521,233.49,233.43,21.46]
[1759439528196,15.85931387,233.49,233.43,21.46]
[1759439530289,10.87647521,233.49,233.44,0.66]
[1759439530501,10.87647521,233.5,233.47,20.8]
[1759439530702,10.87647521,233.5,233.47,21.46]
[1759439530703,15.15914145,233.5,233.47,21.46]
[1759439531023,15.15914145,233.5,233.47,20.8]
[1759439532286,10.87647521,233.51,233.47,20.8]
[1759439532621,11.57647521,233.51,233.47,21.46]
[1759439532808,11.57647521,233.51,233.47,20.8]
[1759439533007,10.87647521,233.51,233.47,21.46]
[1759439533900,15.15901858,233.51,233.47,21.46]
[1759439535297,15.85901858,233.51,233.47,21.46]
[1759439536201,10.7048156,233.54,233.47,21.46]
[1759439536202,10.87647521,233.53,233.48,0.66]